Cogmind - Beta 14 *** ADVENTURER MODE // 2024.09.06 @ 22:36:38 Player: Mbreton Result: Destroyed by H-71 Marshal with Heavy Mass Driver Performance ------------- Evolutions (5) 2500 Regions Visited (11) 2200 Robots Destroyed (115) 575 Value Destroyed (4002) 4002 Prototype IDs (7) 140 Alien Tech Used (0) 0 Bonus (615) 615 TOTAL SCORE: 10032 Bonus ------- Follower Combat Kills 255 Entered DSFs 500 Friendly Fire -140 Cogmind --------- Core Integrity 0/1000 Matter 300/300 Energy 75/100 System Corruption 8% Temperature Cool (0) Movement Core (50) Location -5/Factory Parts ------- > --- POWER (2) -------- (None) > --- PROPULSION (4) --- (None) > --- UTILITY (8) ------ (None) > --- WEAPON (3) ------- (None) > --- INVENTORY (5) ---- Carbon-fiber Leg Armored Leg ECM Suite Advanced Phase Shifter Improved Remote Datajack Peak State ------------ > --- POWER ------------ Neutrino Core Micro Fission Core > --- PROPULSION ------- Armored Leg Armored Leg Armored Leg > --- UTILITY ---------- Advanced Heat Sink Large Storage Unit Improved Target Analyzer Advanced Phase Shifter Layered Heavy Armor Plating System Shield Advanced System Restoration Module > --- WEAPON ----------- Improved Arc Projector Heavy Plasma Cannon Advanced Plasma Cannon > --- INVENTORY -------- Carbon-fiber Leg Carbon-fiber Leg Carbon-fiber Leg Carbon-fiber Leg Armored Leg Improved VSS Leg Improved VSS Leg Improved Sensor Array Precision Matter Filter ECM Suite Advanced Phase Shifter Arc Projector Heavy Plasma Cannon Improved Remote Datajack [Rating: 91] Favorites ----------- Power Improved Deuterium Engine Engine Improved Deuterium Engine Power Core Light Nuclear Core Propulsion Light Treads Treads Light Treads Leg Improved Titanium Leg Utility Improved Medium Armor Plating Device Shield Generator Storage Large Storage Unit Processor Improved Target Analyzer Hackware System Shield Protection Improved Medium Armor Plating Weapon Advanced Beam Cannon Energy Gun Field Laser Energy Cannon Advanced Beam Cannon Ballistic Gun Assault Rifle Ballistic Cannon Gauss Cannon Launcher Shock Bomb Launcher Special Weapon Remote Datajack Special Melee Weapon Datajack Build | -11 -10 -10 -9 -9 -8 -7 -7 -7 -6 -6 -5 ------- Run | Yrd Mat Min Mat Min Mat Fac Low Low Fac DSF Fac Slots Evolved 10 | . . . 2 . 2 2 . . 2 . 2 Power 1 | . . . . . . . . . 1 . . Propulsion 2 | . . . . . 1 1 . . . . . Utility 6 | . . . 2 . . 1 . . 1 . 2 Weapon 1 | . . . . . 1 . . . . . . Parts Attached 128 | 6 9 2 15 . 22 22 4 4 . 15 29 Power 11 | 1 1 . 2 . 1 1 . 1 . 1 3 Engine 6 | 1 1 . 1 . 1 1 . . . 1 . Core 5 | . . . 1 . . . . 1 . . 3 Reactor . | . . . . . . . . . . . . Propulsion 33 | 2 3 . 2 . 6 5 2 2 . 6 5 Treads 14 | 2 3 . 2 . 6 1 . . . . . Leg 19 | . . . . . . 4 2 2 . 6 5 Wheel . | . . . . . . . . . . . . Hover . | . . . . . . . . . . . . Flight . | . . . . . . . . . . . . Utility 33 | 1 . 1 4 . 5 4 . 1 . 4 13 Device 12 | . . . . . 1 . . . . 3 8 Storage 2 | 1 . . . . 1 . . . . . . Processor 2 | . . . . . . . . . . . 2 Hackware 2 | . . . . . 2 . . . . . . Protection 15 | . . 1 4 . 1 4 . 1 . 1 3 Artifact . | . . . . . . . . . . . . Weapon 51 | 2 5 1 7 . 10 12 2 . . 4 8 Energy Gun 16 | . . 1 1 . 2 4 1 . . 3 4 Energy Cannon 10 | . . . 3 . 1 2 . . . . 4 Ballistic Gun 15 | 2 5 . 1 . 3 3 1 . . . . Ballistic Cannon 1 | . . . . . 1 . . . . . . Launcher 5 | . . . . . 2 3 . . . . . Special Weapon 1 | . . . . . . . . . . 1 . Impact Weapon . | . . . . . . . . . . . . Slashing Weapon . | . . . . . . . . . . . . Piercing Weapon . | . . . . . . . . . . . . Special Melee Weapon 3 | . . . 2 . 1 . . . . . . Unidentified Prototypes 5 | . . . 2 . 1 1 . . . . 1 Corrupted Parts 2 | . . . . . . . . . . . 2 System Corruption 2 | . . . . . . . . . . . 2 Parts Lost 48 | . . . 3 . 5 5 2 2 . 7 24 Power 4 | . . . . . . . . . . . 4 Propulsion 14 | . . . 2 . 2 2 1 1 . 1 5 Utility 17 | . . . 1 . 1 1 . 1 . 4 9 Weapon 13 | . . . . . 2 2 1 . . 2 6 Highest Loss Streak 14 | . . . 2 . 1 2 2 2 . 5 14 To Critical Strikes 1 | . . . . . 1 . . . . . . Average Slot Usage (%) 89 | . 71 99 92 100 91 93 96 88 . 78 84 Engine 6 | . 10 14 3 11 9 7 7 3 . 5 1 Core 2 | . . . 7 . . . . 3 . 6 7 Treads 13 | . 19 28 21 22 20 17 . . . . . Leg 9 | . . . . . . 11 28 24 . 17 20 Device 2 | . . . . . 4 . . . . 4 10 Storage 8 | . 14 14 11 11 9 7 7 7 . 6 4 Hackware 3 | . . . . . 3 7 7 7 . 6 4 Protection 16 | . . 13 26 33 18 17 23 17 . 9 8 Energy Gun 6 | . . 12 5 . 3 5 10 15 . 19 5 Energy Cannon 5 | . . . 9 11 8 3 . . . . 10 Ballistic Gun 8 | . 26 15 6 11 8 9 9 7 . . . Peak Build Rating 91 | 6 6 7 15 14 29 51 47 47 41 55 91 Average Rating 31 | 4 5 6 12 14 24 40 45 42 41 44 67 On Entrance 24 | . 6 6 7 14 14 26 41 47 41 41 49 Naked Turns . | . . . . . . . . . . . . Heaviest Build 99 | 14 14 17 24 24 52 64 62 63 58 72 99 Greatest Support 80 | 40 40 40 40 40 60 80 50 45 30 57 62 Greatest Overweight (x) 15 | . 2 . 1 . 15 2 2 2 1 7 2 Average Overweight (x) . | . . . . . . . 1 1 1 2 . Largest Inventory Capacity 15 | 8 8 8 8 8 15 15 15 15 15 15 15 Average Capacity 12 | 5 8 8 8 8 13 15 15 15 15 15 14 Most Carried 15 | 3 6 8 8 7 15 15 13 12 10 15 15 Average Carried 10 | . 2 7 7 6 11 13 11 10 10 10 13 Final Capacity 15 | 8 8 8 8 8 15 15 15 15 15 15 5 Final Carried 14 | . 2 8 6 7 12 12 11 10 10 14 5 Class Distribution -------------------- 39% | Hacker-Tank 38% | Mutant 7% | Tank 4% | Scavenger-Skirmisher 4% | Hacker-Mutant Dominant Class ---------------- Mutant | -10/Materials Mutant | -10/Mines Mutant | -9/Materials Mutant | -9/Mines Hacker-Tank | -8/Materials Hacker-Tank | -7/Factory Hacker-Tank | -7/Lower Caves Hacker-Tank | -7/Lower Caves Hacker-Tank | -6/Factory Hacker-Tank | -6/DSF Hacker-Tank | -5/Factory Resources | -11 -10 -10 -9 -9 -8 -7 -7 -7 -6 -6 -5 ----------- Run | Yrd Mat Min Mat Min Mat Fac Low Low Fac DSF Fac Matter Collected 2468 | 206 30 148 357 3 409 579 130 142 . 136 328 Remotely . | . . . . . . . . . . . . Salvage Created 4836 | . 56 363 919 . 987 1196 213 231 . 208 663 Parts 272 | . 5 26 54 . 55 71 16 6 . 7 32 Haulers Intercepted 3 | . . . 2 . 1 . . . . . . Recyclers Shooed 1 | . . . 1 . . . . . . . . Parts Field Recycled . | . . . . . . . . . . . . Retrieved Matter . | . . . . . . . . . . . . Parts Self-Destructed 20 | . . . . . . . 14 6 . . . Prevented . | . . . . . . . . . . . . Kills | -11 -10 -10 -9 -9 -8 -7 -7 -7 -6 -6 -5 ------- Run | Yrd Mat Min Mat Min Mat Fac Low Low Fac DSF Fac Combat Hostiles Destroyed 94 | . 2 9 19 . 18 22 7 4 . 3 10 Guns 45 | . 2 8 5 . 4 12 7 4 . 2 1 Cannons 38 | . . . 14 . 11 5 . . . . 8 AOE 7 | . . 1 . . 2 3 . . . 1 . Classes Destroyed 16 | . 2 3 4 . 1 5 . 1 . . . Worker 8 | . . 2 2 . 2 1 . . . . 1 Builder 2 | . . . . . . 2 . . . . . Hauler 3 | . . . 2 . 1 . . . . . . Recycler 3 | . . . 1 . 1 1 . . . . . Minesweeper 1 | . . . . . . . . 1 . . . Operator 2 | . . . . . 2 . . . . . . Watcher 1 | . 1 . . . . . . . . . . Swarmer 24 | . 2 3 6 . 4 5 4 . . . . Grunt 36 | . . 4 8 . 9 6 2 4 . . 3 Brawler 1 | . . . 1 . . . . . . . . Duelist 1 | . . . 1 . . . . . . . . Protector 1 | . . . . . . 1 . . . . . Sentry 14 | . . 2 3 . 5 3 . . . . 1 Specialist 6 | . . . . . . 1 . . . 3 2 Hunter 5 | . . . . . . 2 1 . . . 2 Programmer 6 | . . . . . . 4 . . . . 2 Thug 1 | . . . . . 1 . . . . . . Best Kill Streak 8 | . 2 3 4 . 8 8 4 3 . 2 7 Combat Bots Only 6 | . 2 2 4 . 6 6 4 3 . 2 6 Max Kills in Single Turn 4 | . 1 2 2 . 2 4 2 1 . 2 1 Gunslinging 1 | . . . . . . . 1 . . . . Exploded 2 | . . 1 . . 2 2 . . . 1 . Melee . | . . . . . . . . . . . . Uniques/NPCs Destroyed . | . . . . . . . . . . . . Combat | -11 -10 -10 -9 -9 -8 -7 -7 -7 -6 -6 -5 -------- Run | Yrd Mat Min Mat Min Mat Fac Low Low Fac DSF Fac Hostile Shots Fired 921 | . 27 57 62 3 102 210 25 43 . 78 314 Missed 273 | . 5 21 18 . 26 72 5 4 . 24 98 Damage Taken 8812 | . 133 350 468 92 851 1572 243 497 . 737 3869 Core 1692 | . 15 32 99 7 142 215 11 24 . 92 1055 Absorbed by Shields 258 | . . . . . 108 . . . . 150 . Redirected to Shielding 186 | . . . 38 5 25 16 . . . . 102 Ignored by Resistances 2454 | . 44 107 137 24 254 433 74 143 . 248 990 Regen/Repaired (Parts) 216 | . . . 69 . 133 14 . . . . . Core Remaining (%) 80 | 100 . 81 . 73 74 . . 64 . 89 . Volleys Fired 272 | . 8 25 48 1 57 51 11 23 . 15 33 Largest 3 | . 2 2 2 2 3 3 3 3 . 3 3 Hottest 278 | . 40 60 118 88 167 176 131 171 . 198 278 Shots Fired 599 | . 16 50 93 2 122 120 33 34 . 41 88 Gun 383 | . 16 50 49 1 54 89 33 34 . 40 17 Cannon 202 | . . . 44 1 65 21 . . . . 71 Launcher 13 | . . . . . 3 10 . . . . . Special 1 | . . . . . . . . . . 1 . Kinetic 236 | . 16 34 33 1 48 58 21 21 . 4 . Thermal 272 | . . . 56 1 66 33 12 13 . 20 71 Explosive 1 | . . . . . 1 . . . . . . Electromagnetic 89 | . . 16 4 . 7 29 . . . 16 17 Robot Hit Streak 26 | . 9 17 9 6 22 26 19 24 . 21 22 Robot Miss Streak 7 | . 1 1 2 . 2 7 2 2 . 2 3 Penetration Max . | . . . . . . . . . . . . Secondary Targets 3 | . 1 . . . . 1 1 . . . . Max Gunslinging Chain 1 | . 1 . . . . 1 1 . . . . Shots Hit Robots 455 | . 13 38 63 2 87 96 28 31 . 33 64 Core Hits 232 | . 4 20 35 1 38 69 18 13 . 13 21 Critical Kills 3 | . . . . . 1 1 . . . . 1 Critical Parts Destroyed . | . . . . . . . . . . . . Critical Strikes 6 | . . . . . 3 1 . . . 1 1 Burn 1 | . . . . . . . . . . 1 . Meltdown 3 | . . . . . 1 1 . . . . 1 Blast 2 | . . . . . 2 . . . . . . Melee Attacks 4 | . . . 4 . . . . . . . . Impact . | . . . . . . . . . . . . Slashing . | . . . . . . . . . . . . Piercing . | . . . . . . . . . . . . Sneak Attacks 4 | . . . 4 . . . . . . . . Combat Hostiles . | . . . . . . . . . . . . Follow-up Attacks . | . . . . . . . . . . . . Damage Inflicted 10271 | . 167 549 1067 32 1864 2733 535 651 . 738 1935 Guns 5335 | . 167 465 450 11 718 1552 535 651 . 588 198 Cannons 3737 | . . . 617 21 1040 387 . . . . 1672 Explosions 1134 | . . 84 . . 106 794 . . . 150 . Melee . | . . . . . . . . . . . . Ramming 65 | . . . . . . . . . . . 65 Kinetic 3161 | . 167 309 270 11 703 952 271 415 . 63 . Thermal 5426 | . . 84 743 21 958 948 264 236 . 500 1672 Explosive 84 | . . . . . 84 . . . . . . Electromagnetic 1535 | . . 156 54 . 119 833 . . . 175 198 Impact . | . . . . . . . . . . . . Slashing . | . . . . . . . . . . . . Piercing . | . . . . . . . . . . . . Highest Corruption 8 | . . . . . . 6 6 6 . . 8 Average Corruption 4 | . . . . . . 2 6 6 . . 2 Corruption Purged 4 | . . . . . . . . . . . 4 Corruption Blocked . | . . . . . . . . . . . . Effects 60 | . . . . . . 18 17 16 . . 9 Message Errors 16 | . . . . . . 4 5 4 . . 3 Matter Fused 14 | . . . . . . 6 3 3 . . 2 Heat Flow Errors 10 | . . . . . . 3 3 3 . . 1 Energy Discharges 7 | . . . . . . 3 3 . . . 1 Parts Rejected 2 | . . . . . . . . 2 . . . Parts Fused 1 | . . . . . . . . . . . 1 Data Loss (minor) 4 | . . . . . . 2 1 . . . 1 Data Loss (major) 2 | . . . . . . . . 2 . . . Misfires 4 | . . . . . . . 2 2 . . . Overload Shots . | . . . . . . . . . . . . Overflow Damage 62 | . . . 1 . 14 33 . . . 3 11 Projectiles 39 | . . . 1 . 14 13 . . . . 11 Explosions 23 | . . . . . . 20 . . . 3 . Melee . | . . . . . . . . . . . . Knockbacks 3 | . . . . . 3 . . . . . . Impact . | . . . . . . . . . . . . Kinetic 2 | . . . . . 2 . . . . . . Secondary 1 | . . . . . 1 . . . . . . Self-Inflicted Damage 46 | . . . . . . 46 . . . . . Shots 4 | . . . . . . 4 . . . . . Rammed . | . . . . . . . . . . . . Targets Rammed 7 | . . . . . . . . . . . 7 Kicked 7 | . . . . . . . . . . . 7 Crushed . | . . . . . . . . . . . . Highest Temperature 861 | . . 129 460 30 660 861 467 487 . 386 623 Average Temperature 175 | . . 55 93 18 181 208 150 208 . 146 226 Received Heat Transfer 2799 | . . 204 180 . 444 420 18 387 . 342 804 Effects 85 | . . . 1 . 15 31 1 7 . . 30 Shutdowns 13 | . . . . . . 3 . . . . 10 Energy Bleed 14 | . . . . . 2 4 . 2 . . 6 Interference 9 | . . . . . 1 3 . 3 . . 2 Matter Decay 10 | . . . . . 4 2 1 1 . . 2 Short Circuit 11 | . . . 1 . 2 3 . 1 . . 4 Damage (minor) 5 | . . . . . 4 . . . . . 1 Damage (major) 19 | . . . . . 1 15 . . . . 3 Damage (core) 4 | . . . . . 1 1 . . . . 2 Siege Activations . | . . . . . . . . . . . . Robots Corrupted 1 | . . . . . . 1 . . . . . Combat Hostiles 1 | . . . . . . 1 . . . . . Parts Fried 3 | . . . . . . 2 . . . . 1 Impact Corruptions . | . . . . . . . . . . . . Robots Melted 3 | . . . . . 1 1 . . . . 1 Combat Hostiles 3 | . . . . . 1 1 . . . . 1 Parts Melted 24 | . . . 3 . 5 9 . . . 1 6 Heat Transferred 9595 | . . 150 1480 37 1813 1598 600 523 . 944 2450 Parts Sabotaged . | . . . . . . . . . . . . Parts Stolen . | . . . . . . . . . . . . Parts Stripped . | . . . . . . . . . . . . Power Chain Reactions 6 | . . 1 . . . 4 . . . 1 . Alert | -11 -10 -10 -9 -9 -8 -7 -7 -7 -6 -6 -5 ------- Run | Yrd Mat Min Mat Min Mat Fac Low Low Fac DSF Fac Peak Influence 339 | . 92 175 339 56 307 220 . . 2 127 299 Initial 50 | . . . 37 41 18 35 . . 2 . 50 Average 98 | . 47 104 157 48 104 109 . . 2 55 79 Maximum Alert Level 1 | . . . 1 . 1 1 . . . . 1 Low Security (%) 85 | 100 100 100 54 100 87 91 . . 100 100 85 Level 1 14 | . . . 45 . 12 8 . . . . 14 Level 2 . | . . . . . . . . . . . . Level 3 . | . . . . . . . . . . . . Level 4 . | . . . . . . . . . . . . Level 5 . | . . . . . . . . . . . . High Security . | . . . . . . . . . . . . Max Security . | . . . . . . . . . . . . Squads Dispatched 18 | . . . . . 3 6 . . . 3 6 Investigation . | . . . . . . . . . . . . Extermination 4 | . . . . . . 2 . . . . 2 Reinforcement 9 | . . . . . 3 1 . . . 3 2 Assault 1 | . . . . . . . . . . . 1 Garrison 4 | . . . . . . 3 . . . . 1 Intercept . | . . . . . . . . . . . . Searches Triggered . | . . . . . . . . . . . . Construction Impeded 1 | . . . . . . 1 . . . . . Haulers Reinforced . | . . . . . . . . . . . . Active Scanning Responses . | . . . . . . . . . . . . Cargo Convoy Interrupts 1 | . . . . . . 1 . . . . . Stealth | -11 -10 -10 -9 -9 -8 -7 -7 -7 -6 -6 -5 --------- Run | Yrd Mat Min Mat Min Mat Fac Low Low Fac DSF Fac Distress Signals 9 | . 1 . 3 . 4 1 . . . . . Communications Jammed . | . . . . . . . . . . . . Distress Signals . | . . . . . . . . . . . . Times Spotted 163 | . 4 9 24 3 41 28 7 4 . 12 31 Peak Tracking Total 9 | . 4 3 4 2 7 7 4 4 . 5 9 Tactical Retreats 18 | . 1 1 . 1 3 . . . . 2 10 Traps | -11 -10 -10 -9 -9 -8 -7 -7 -7 -6 -6 -5 ------- Run | Yrd Mat Min Mat Min Mat Fac Low Low Fac DSF Fac Traps Triggered 8 | . 2 . 1 . 1 3 . . . . 1 Indirectly . | . . . . . . . . . . . . Trap Hack Attempts 5 | . . . . . 5 . . . . . . Triggered . | . . . . . . . . . . . . Disarmed . | . . . . . . . . . . . . Reprogrammed 1 | . . . . . 1 . . . . . . Reused . | . . . . . . . . . . . . Traps Extracted . | . . . . . . . . . . . . Installed . | . . . . . . . . . . . . Triggered . | . . . . . . . . . . . . Machines | -11 -10 -10 -9 -9 -8 -7 -7 -7 -6 -6 -5 ---------- Run | Yrd Mat Min Mat Min Mat Fac Low Low Fac DSF Fac Machines Disabled 2 | . . 1 1 . . . . . . . . Max in Single Turn 1 | . . 1 1 . . . . . . . . Garrison Access 1 | . . . . . . . . . . . 1 Machines Repaired . | . . . . . . . . . . . . Machines Dismantled . | . . . . . . . . . . . . Machines Sabotaged . | . . . . . . . . . . . . Overloaded Fab Kills . | . . . . . . . . . . . . Hacking | -11 -10 -10 -9 -9 -8 -7 -7 -7 -6 -6 -5 --------- Run | Yrd Mat Min Mat Min Mat Fac Low Low Fac DSF Fac Machines Accessed 21 | . . . 6 . 8 3 . . 1 . 3 Terminals 11 | . . . 5 . 3 1 . . 1 . 1 Fabricators 1 | . . . . . . . . . . . 1 Repair Stations 5 | . . . 1 . 2 2 . . . . . Recycling Units 2 | . . . . . 2 . . . . . . Scanalyzers 1 | . . . . . 1 . . . . . . Garrison Access 1 | . . . . . . . . . . . 1 Total Hacks 60 | . . . 16 . 29 8 . . 1 . 6 Successful 40 | . . . 10 . 21 4 . . 1 . 4 Failed 20 | . . . 6 . 8 4 . . . . 2 Catastrophic 2 | . . . . . . 1 . . . . 1 Database Lockouts . | . . . . . . . . . . . . Manual . | . . . . . . . . . . . . Terminals 31 | . . . 13 . 11 3 . . 1 . 3 Fabricators 2 | . . . . . . . . . . . 2 Repair Stations 13 | . . . 3 . 5 5 . . . . . Recycling Units 7 | . . . . . 7 . . . . . . Scanalyzers 6 | . . . . . 6 . . . . . . Garrison Access 1 | . . . . . . . . . . . 1 Terminal Hacks 17 | . . . 7 . 7 1 . . 1 . 1 Robot Analysis 2 | . . . . . . 1 . . . . 1 Prototype ID Bank 1 | . . . . . 1 . . . . . . Open DSF 1 | . . . . . . . . . 1 . . Emergency Access Points 1 | . . . 1 . . . . . . . . Repair Station Index 1 | . . . . . 1 . . . . . . Alert Level 1 | . . . 1 . . . . . . . . Unreport Threat 2 | . . . 2 . . . . . . . . Locate Traps 2 | . . . 1 . 1 . . . . . . Maintenance Status 1 | . . . . . 1 . . . . . . Hauler Manifests 2 | . . . 1 . 1 . . . . . . Registered Prototypes 1 | . . . 1 . . . . . . . . Zone Layout 2 | . . . . . 2 . . . . . . Fabricator Hacks 2 | . . . . . . . . . . . 2 Network Status 1 | . . . . . . . . . . . 1 Build 1 | . . . . . . . . . . . 1 Repair Station Hacks 11 | . . . 3 . 5 3 . . . . . Scan Component 7 | . . . 2 . 3 2 . . . . . Repair 4 | . . . 1 . 2 1 . . . . . Recycling Unit Hacks 5 | . . . . . 5 . . . . . . Process 1 | . . . . . 1 . . . . . . Report Inventory 1 | . . . . . 1 . . . . . . Retrieve Matter 2 | . . . . . 2 . . . . . . Retrieve Components 1 | . . . . . 1 . . . . . . Scanalyzer 4 | . . . . . 4 . . . . . . Insert Component 2 | . . . . . 2 . . . . . . Analyze 2 | . . . . . 2 . . . . . . Garrison Access Hacks 1 | . . . . . . . . . . . 1 Unlock Access 1 | . . . . . . . . . . . 1 Unauthorized Hacks . | . . . . . . . . . . . . Terminals . | . . . . . . . . . . . . Fabricators . | . . . . . . . . . . . . Repair Stations . | . . . . . . . . . . . . Recycling Units . | . . . . . . . . . . . . Scanalyzers . | . . . . . . . . . . . . Garrison Access . | . . . . . . . . . . . . Data Cores Recovered 1 | . . . . . 1 . . . . . . Used 1 | . . . . . 1 . . . . . . Hacking Detections 16 | . . . 5 . 7 3 . . . . 1 Full Trace Events . | . . . . . . . . . . . . Feedback Events . | . . . . . . . . . . . . Feedback Blocked . | . . . . . . . . . . . . Robot Schematics Acquired . | . . . . . . . . . . . . Robots Built . | . . . . . . . . . . . . Authchips . | . . . . . . . . . . . . Time . | . . . . . . . . . . . . Total Robot Build Rating . | . . . . . . . . . . . . Part Schematics Acquired 2 | . . . . . 2 . . . . . . Parts Built 2 | . . . . . . . . . . . 2 Authchips . | . . . . . . . . . . . . Time 69 | . . . . . . . . . . . 69 Total Part Build Rating 18 | . . . . . . . . . . . 18 Parts Repaired 4 | . . . 1 . 2 1 . . . . . Time 118 | . . . 26 . 62 30 . . . . . Parts Recycled . | . . . . . . . . . . . . Recycled Matter 206 | . . . . . 206 . . . . . . Retrieved Matter 206 | . . . . . 206 . . . . . . Retrieved Components 10 | . . . . . 10 . . . . . . Parts Scanalyzed 2 | . . . . . 2 . . . . . . Part Schematics Acquired 2 | . . . . . 2 . . . . . . Parts Damaged . | . . . . . . . . . . . . Bothacking | -11 -10 -10 -9 -9 -8 -7 -7 -7 -6 -6 -5 ------------ Run | Yrd Mat Min Mat Min Mat Fac Low Low Fac DSF Fac Used RIF Installer . | . . . . . . . . . . . . Robots Hacked 2 | . . . 2 . . . . . . . . Non-combat 2 | . . . 2 . . . . . . . . Combat . | . . . . . . . . . . . . Robot Hacks Applied 4 | . . . 4 . . . . . . . . parse_system 1 | . . . 1 . . . . . . . . no_distress 2 | . . . 2 . . . . . . . . find_station 1 | . . . 1 . . . . . . . . Relay Couplers Released 3 | . . . . . . . . . . . 3 Machine Destruction 3 | . . . . . . . . . . . 3 Fabnet Peak Effective % . | . . . . . . . . . . . . Robots Rewired 1 | . . . . . . . . . . 1 . Allies Hacked . | . . . . . . . . . . . . Hacks Repelled . | . . . . . . . . . . . . Allies | -11 -10 -10 -9 -9 -8 -7 -7 -7 -6 -6 -5 -------- Run | Yrd Mat Min Mat Min Mat Fac Low Low Fac DSF Fac Total Allies 7 | . . 3 . 3 . . . . . 1 . Largest Group 3 | . . 3 3 3 3 . . . . 1 . Highest-Rated Group 82 | . . 40 40 82 82 . . . . 47 . Highest-Rated Ally 47 | . . 16 16 31 31 . . . . 47 . Total Orders . | . . . . . . . . . . . . Ally Attacks 54 | . . . 11 1 36 . . . . 6 . Total Damage 804 | . . . 137 . 454 . . . . 213 . Kills 8 | . . . 1 . 4 . . . . 3 . Allies Corrupted . | . . . . . . . . . . . . Allies Melted . | . . . . . . . . . . . . Intel | -11 -10 -10 -9 -9 -8 -7 -7 -7 -6 -6 -5 ------- Run | Yrd Mat Min Mat Min Mat Fac Low Low Fac DSF Fac Robot Analysis Total 2 | . . . . . . 1 . . . . 1 Derelict Logs Recovered 2 | . . 1 . . . . 1 . . . . Drone Launches . | . . . . . . . . . . . . Drone Recoveries . | . . . . . . . . . . . . Exploration | -11 -10 -10 -9 -9 -8 -7 -7 -7 -6 -6 -5 ------------- Run | Yrd Mat Min Mat Min Mat Fac Low Low Fac DSF Fac Turns Passed 8509 | 112 530 619 1165 309 1859 1038 646 562 4 428 1237 Spaces Moved 4070 | 68 309 324 603 189 828 476 306 244 3 116 604 Core 167 | 7 99 . . . 5 . . . . . 56 Treads 2499 | 61 210 324 603 189 823 289 . . . . . Legs 1404 | . . . . . . 187 306 244 3 116 548 Wheels . | . . . . . . . . . . . . Hover . | . . . . . . . . . . . . Flight . | . . . . . . . . . . . . Fastest Speed 50 | 50 150 160 160 160 160 130 193 193 195 105 50 Average Speed 174 | 148 156 160 160 160 186 161 195 205 195 295 160 Slowest Speed 800 | 160 160 160 240 160 800 270 265 265 195 610 260 Overloaded Moves . | . . . . . . . . . . . . Propulsion Burnouts . | . . . . . . . . . . . . Robots Hopped . | . . . . . . . . . . . . Cave-ins Triggered . | . . . . . . . . . . . . Exploration Rate (%) 39 | 5 30 74 31 40 64 15 46 44 . 76 11 Regions Visited 11 Branch Regions 4 Pre-discovered Areas . | . . . . . . . . . . . . Known Exits Taken 2 | . . 1 . . . . . . 1 . . Unknown Exits Taken 8 | 1 1 . 1 1 1 1 1 1 . . . Scrap Searched 3 | . . . . 1 . . 2 . . . . Spaces Dug 6 | . . . . . . . . . . . 6 Terrain Destroyed 45 | . . 2 . . 14 8 . . . 4 17 Melee . | . . . . . . . . . . . . Projectile 21 | . . . . . 4 . . . . . 17 AOE 24 | . . 2 . . 10 8 . . . 4 . Terrain Rammed . | . . . . . . . . . . . . Walls Destroyed . | . . . . . . . . . . . . Machines Disabled . | . . . . . . . . . . . . Actions | -11 -10 -10 -9 -9 -8 -7 -7 -7 -6 -6 -5 --------- Run | Yrd Mat Min Mat Min Mat Fac Low Low Fac DSF Fac Total 4948 | 79 337 378 702 194 1051 640 327 273 2 165 800 Wait 311 | . 4 19 15 4 98 72 3 . . 5 91 Move 4059 | 67 308 323 602 188 827 475 305 243 2 115 604 Hop . | . . . . . . . . . . . . Pick Up 119 | 6 8 8 11 1 29 13 3 2 . 14 24 Fast Attach . | . . . . . . . . . . . . Attach 71 | 6 6 1 6 . 11 7 4 3 . 9 18 Detach 2 | . . . . . . 1 . 1 . . . Swap 57 | . 3 1 9 . 11 15 . 1 . 6 11 Drop 41 | . . 1 7 . 13 6 1 . . 1 12 Fire 272 | . 8 25 48 1 57 51 11 23 . 15 33 Melee 4 | . . . 4 . . . . . . . . Ram . | . . . . . . . . . . . . Kick 7 | . . . . . . . . . . . 7 Crush . | . . . . . . . . . . . . Escape Stasis . | . . . . . . . . . . . . Rewire . | . . . . . . . . . . . . Trap 5 | . . . . . 5 . . . . . . Miscellaneous . | . . . . . . . . . . . . Route ------- -11/Scrapyard -10/Materials -10/Mines (discovered 2 exits: *Mat x2) -9/Materials (discovered 3 exits: *Mat / [*Min] / [*Sto]) -9/Mines -8/Materials (discovered 2 exits: *Fac x2) -7/Factory (discovered 2 exits: *Fac / [*Low]) -7/Lower Caves -7/Lower Caves -6/Factory -6/DSF -5/Factory (discovered 2 exits: *Fac / *Upp) History --------- Turn | Location | Event 6 | -11/Scrapyard | Discovered new exit (range 15) 113 | -11/Scrapyard | Entered Materials 200 | -10/Materials | Discovered new exit (range 4) 304 | -10/Materials | Build established: Mutant 643 | -10/Materials | Entered Mines 831 | -10/Mines | Identified exit to Materials 875 | -10/Mines | Discovered exit to Materials (range 9) 1250 | -10/Mines | Assisted by bots powering up and referring to "LRC-V3" 1262 | -10/Mines | Entered Materials 1262 | -9/Materials | Accompanied by 3 allies 1262 | -9/Materials | Evolved 2 slots: Utility x2 1456 | -9/Materials | Discovered new exit (range 10) 1754 | -9/Materials | Discovered new exit (range 10) 1771 | -9/Materials | Discovered new exit (range 10) 2388 | -9/Materials | Repaired Lgt. Armor Plating 2427 | -9/Materials | Entered Mines 2428 | -9/Mines | Assembled infested the area 2609 | -9/Mines | Discovered new exit (range 10) 2628 | -9/Mines | Received a Mining Laser from a helpful Derelict 2736 | -9/Mines | Entered Materials 2736 | -8/Materials | Accompanied by 3 allies 2736 | -8/Materials | Evolved 2 slots: Propulsion x1, Weapon x1 2741 | -8/Materials | Led the pair of lost Derelicts to an unsafe place 3179 | -8/Materials | Build established: Tank 3775 | -8/Materials | Build established: Mutant 3837 | -8/Materials | Repaired Lgt. Treads 4232 | -8/Materials | Discovered new exit (range 3) 4431 | -8/Materials | Repaired Corrupted Lgt. Treads 4501 | -8/Materials | Discovered new exit (range 16) 4595 | -8/Materials | Entered Factory 4595 | -7/Factory | Evolved 2 slots: Propulsion x1, Utility x1 4643 | -7/Factory | Build established: Hacker-Tank 4863 | -7/Factory | Repaired Broken Lightning Gun 5151 | -7/Factory | Cargo convoy interrupted 5303 | -7/Factory | Discovered new exit (range 10) 5418 | -7/Factory | Discovered new exit (range 13) 5420 | -7/Factory | Garrison activated, responded to threat 5633 | -7/Factory | Entered Lower Caves 5657 | -7/Lower Caves | Learned Factory non-interactive machine intel 6023 | -7/Lower Caves | Discovered new exit (range 12) 6279 | -7/Lower Caves | Entered another Lower Caves area 6810 | -7/Lower Caves | Discovered new exit (range 11) 6841 | -7/Lower Caves | Entered Factory 6841 | -6/Factory | Evolved 2 slots: Power x1, Utility x1 6842 | -6/Factory | Loaded intel: 245 non-interactive machine locations 6845 | -6/Factory | Identified exit to DSF 6845 | -6/Factory | Entered DSF 7032 | -6/DSF | Additional patrols routed to DSF 7242 | -6/DSF | Lost 5 parts (4u1w) 7259 | -6/DSF | Discovered new exit (range 12) 7273 | -6/DSF | Entered Factory 7273 | -5/Factory | Evolved 2 slots: Utility x2 7408 | -5/Factory | Discovered new exit (range 6) 7414 | -5/Factory | Identified exit to Upper Caves 7582 | -5/Factory | Discovered new exit (range 8) 7618 | -5/Factory | Identified exit to Factory 7625 | -5/Factory | Lost 3 parts (2p1w) 7708 | -5/Factory | Lost 3 parts (2u1w) 7727 | -5/Factory | Fabricated Adv. Phase Shifter (x2) 8429 | -5/Factory | Garrison activated, responded to threat 8447 | -5/Factory | Spotted B-75 Beast 8460 | -5/Factory | Identified exit to Garrison 8463 | -5/Factory | Core integrity fell below 50% 8485 | -5/Factory | Core integrity fell below 20% 8506 | -5/Factory | Lost 14 parts (1p4n5u4w) 8510 | -5/Factory | Destroyed by H-71 Marshal with Heavy Mass Driver Last Messages --------------- Relay Coupler [Demolisher] tumbles out of Garrison Access. B-60 Warrior destroyed. S-27 Virus destroyed. Arm. Leg destroyed. Adv. System Restoration Module destroyed. Adv. Heat Sink destroyed. System Shield destroyed. Dropped Arm. Leg. System corrupted: Matter fused (-9). G-50 Soldier knocked back. K-01 Serf cleans the Assembly Bed. Acquired 80 matter. K-01 Serf cleans the Assembly Bed. Nuclear Reactor explodes. Assembly Bed disabled. K-01 Serf collects debris. System corrupted: Energy discharge (-24). Imp. Target Analyzer destroyed. Critical hit (Blast). Map ----- +----------------------------------------------------+ | ##" % ##????????????????????????????????????? | | # # "" #?????????????????????????????????????? | | # # """#?????????????????????????????????????? | | # # R"#?????????????????????????????????????? | | # # """#?????????????????????????????????????? | | # # #?????????????????????????????????????? | | # ########################### ?????????????????? | | # % ????????????????? | | # ????????????????? | | / ????????????????? | | # """ """" ????????????????? | | # """ """" ?????????????????? | | # """ """" !H#???????????????????? | | # ^^^ """" #???????????????????? | | # """" #???????????????????? | | # [ """" #???????????????????? | | # #???????????????????? | | # """" "" " """" #???????????????????? | | ### """" """" """" #???????????????????? | | ??######## """" """"t"""" #???????????????????? | | #####????# """" """" "" " #???????????????????? | | [ ###### """" """" """ #???????????????????? | | ## # """" """" """"% #???????????????????? | | """ ###### #???????????????????? | | """ # %% #???????????????????? | | """ # k k @ #???????????????????? | | # ###########+#+#####???????????????? | | """ # #??#?# % #???????????????? | | """ # % #????# #???????????????? | | """ # ########????# " "" """" #???????????????? | | + #???????????# """" """" #???????????????? | | # #???????????# """" """" #???????????????? | | ##### ##??????????# """" """" #???????????????? | | ???# #??????????# #???????????????? | | #### #??????????# """" """"? #???????????????? | | #??????????# """" """"??#???????????????? | | #### #??????????# ??"" ""????????????????????? | | #??# #???????????????" "?????????????????????? | | ???###+###??????????????? ?????????????????????? | | ?????????????????????????###?????????????????????? | | ?????????????????????????????????????????????????? | | ?????????????????????????????????????????????????? | | ?????????????????????????????????????????????????? | | ?????????????????????????????????????????????????? | | ##???????????????????????????????????????????????? | | #???????????????????????????????????????????????? | | #???????????????????????????????????????????????? | | #???????????????????????????????????????????????? | | #???????????????###########?????????????????????? | | #???????????????# #?????????????????????? | +----------------------------------------------------+ Best States ------------- Heat Dissipation 59 Energy Generation 32 Energy Capacity 525 Matter Stores 300 Matter Capacity 300 Sight Range 16 Robot Scan Range 15 Terrain Scan Density 10 ECM Strength 1 Armor Coverage 825 Resistance: KI 20 Resistance: TH 20 Resistance: EX 20 Resistance: EM 20 Resistance: I 20 Resistance: S 20 Resistance: P 20 Core Shielding 20 Propulsion Shielding 33 Weapon Shielding 33 Phase Shifting 15 Evasion (%) 63 Target Analysis 6 Recoil Reduction 4 Offensive Hacking 20 Defensive Hacking 10 Item Schematics ----------------- Hvy. Armor Plating | -8/Materials | Scanalyzed Lgt. Treads | -8/Materials | Scanalyzed Robot Schematics ------------------ None Fabricated ------------ Adv. Phase Shifter | x2 | -5/Factory | Preloaded Alien Tech Used ----------------- None Achievements -------------- None Challenges ------------ None Game ------ Seed ChargeOpticalLegs Manual? 0 Play Time 01:39:02 Cumulative 20.1 hours Start 2024.09.04 @ 22:09:39 End 2024.09.06 @ 22:36:38 Sessions 2 Manual Loads 0 Difficulty Adventurer Special Mode None Game No. 14 Rogue 0 Adventurer 14 Explorer 0 Win Type - Total 0 Types 0/0/0/0/0/0/0/0/0 Lore% 8 Gallery% 21 Achievement% 19 Wizard Run 0 Options --------- Layout 1 ASCII 0 Keyboard 0 Movement Mouse Keybinds 0 Fullscreen 1 Font 32/SmallcapsGlow Map View 50x35 Zoom Use 54% Tactical HUD 0 Map Filters NONE Filters NONE Steam 1 RUN: 980a9082-f380-4791-998f-c1171e1b5573